bitfinex/quotes_BTCUSD_20250328
["timestamp","ask_amount","ask_price","bid_price","bid_amount"]
[1743183940173,0.80993113,83901.0,83900.0,5.1e-07]
[1743183940414,0.94753113,83901.0,83900.0,5.1e-07]
[1743183941407,0.68370454,83901.0,83900.0,5.1e-07]
[1743183941612,0.57101054,83901.0,83900.0,0.07640051]
[1743183941811,0.40390534,83901.0,83900.0,0.07640051]
[1743183941994,0.01601134,83901.0,83900.0,0.38703836]
[1743183942205,0.15361134,83901.0,83900.0,0.38703836]
[1743183942607,0.14861134,83901.0,83900.0,0.37512036]
[1743183942813,0.39390534,83901.0,83900.0,0.13674136]
[1743183943058,0.39690534,83901.0,83900.0,0.12220051]
[1743183943383,0.41886764,83901.0,83900.0,0.12220051]
[1743183943570,0.41586764,83901.0,83900.0,0.12220051]
[1743183943902,0.41586764,83901.0,83900.0,5.1e-07]
[1743183944147,0.42792532,83901.0,83900.0,5.1e-07]
[1743183944755,0.54218296,83901.0,83900.0,5.1e-07]
[1743183945299,0.54018296,83901.0,83900.0,5.1e-07]
[1743183945455,0.50816298,83901.0,83900.0,5.1e-07]
[1743183946133,0.51016298,83901.0,83900.0,5.1e-07]
[1743183946393,0.51116298,83901.0,83900.0,5.1e-07]
[1743183948828,0.37356298,83901.0,83900.0,5.1e-07]
[1743183949081,0.39690534,83901.0,83900.0,5.1e-07]
[1743183950386,0.39690534,83901.0,83900.0,0.08050051]
[1743183950932,0.25930534,83901.0,83900.0,0.08050051]
[1743183951133,0.39690534,83901.0,83900.0,0.08050051]
[1743183951818,0.51052377,83901.0,83900.0,5.1e-07]
[1743183952159,0.50952377,83901.0,83900.0,5.1e-07]
[1743183952350,0.50752377,83901.0,83900.0,5.1e-07]
[1743183952719,0.50852377,83901.0,83900.0,5.1e-07]
[1743183953052,0.50752377,83901.0,83900.0,5.1e-07]
[1743183953455,0.39490534,83901.0,83900.0,5.1e-07]
[1743183953882,0.50916298,83901.0,83900.0,5.1e-07]
[1743183959710,0.50916298,83901.0,83900.0,5.1e-07]
[1743183962400,0.37156298,83901.0,83900.0,5.1e-07]
[1743183962602,0.39486534,83901.0,83900.0,5.1e-07]
[1743183962778,0.39386534,83901.0,83900.0,0.04910051]
[1743183963180,0.39586534,83901.0,83900.0,0.04910051]
[1743183963600,0.39686534,83901.0,83900.0,0.04910051]
[1743183964940,0.39486534,83901.0,83900.0,0.04910051]
[1743183965391,0.50827977,83901.0,83900.0,5.1e-07]
[1743183966691,0.39486534,83901.0,83900.0,5.1e-07]
[1743183970415,0.37156298,83901.0,83900.0,5.1e-07]
[1743183970615,0.50912298,83901.0,83900.0,5.1e-07]
[1743183971632,0.39486534,83901.0,83900.0,5.1e-07]
[1743183975457,0.25730534,83901.0,83900.0,5.1e-07]
[1743183975659,0.39486534,83901.0,83900.0,5.1e-07]
[1743183977437,0.24538734,83901.0,83900.0,0.04600051]
[1743183977643,0.25730534,83901.0,83900.0,0.06054136]
[1743183977879,0.39486534,83901.0,83900.0,0.06054136]
[1743183978181,0.00701134,83901.0,83900.0,0.06054136]
[1743183978407,0.14457134,83901.0,83900.0,0.13764136]
[1743183978666,0.38194734,83901.0,83900.0,0.13764136]
[1743183978915,0.39386534,83901.0,83900.0,0.13764136]
[1743183979111,0.39386534,83901.0,83900.0,0.16193122]
[1743183979585,0.39386534,83901.0,83900.0,0.07029037]
[1743183980768,0.39386534,83901.0,83900.0,0.02429037]
[1743183981787,0.39386534,83901.0,83900.0,5.1e-07]
[1743183982396,0.25630534,83901.0,83900.0,5.1e-07]
[1743183982613,0.24438734,83901.0,83900.0,5.1e-07]
[1743183982835,0.14353134,83901.0,83900.0,0.25292036]
[1743183983041,0.14353134,83901.0,83900.0,0.01454136]
[1743183983261,0.00601134,83901.0,83900.0,0.49155515]
[1743183983484,0.137858,83901.0,83900.0,0.84336045]
[1743183983729,0.087858,83901.0,83900.0,0.84836045]
[1743183984209,0.087858,83901.0,83900.0,0.84336045]
[1743183984658,0.087858,83901.0,83900.0,1.54336045]
[1743183985092,0.001,83901.0,83900.0,1.54336045]
[1743183985311,0.13852,83901.0,83900.0,1.54336045]
[1743183985532,0.13952,83901.0,83900.0,1.54336045]
[1743183986377,0.250195,83935.0,83931.0,0.23829]
[1743183986611,0.011913,83940.0,83931.0,0.25283085]
[1743183986806,0.14269899,83932.0,83931.0,0.26474485]
[1743183987027,0.137858,83932.0,83931.0,0.01454085]
[1743183987185,0.38098699,83932.0,83931.0,0.01454085]
[1743183987582,0.38098699,83932.0,83931.0,0.01464653]
[1743183988292,0.14269899,83932.0,83931.0,0.01464653]
[1743183988489,0.14269899,83932.0,83931.0,0.25293653]
[1743183988687,0.14269899,83932.0,83931.0,0.01564653]
[1743183988892,0.38098699,83932.0,83931.0,0.02742364]
[1743183989002,0.14269899,83932.0,83931.0,0.05232981]
[1743183989209,0.38098699,83932.0,83931.0,0.0405527]
[1743183989815,0.14269899,83932.0,83931.0,0.0405527]
[1743183990060,0.39290099,83932.0,83931.0,0.0405527]
[1743183990263,0.39290099,83932.0,83931.0,0.02601185]
[1743183993324,0.25538099,83932.0,83931.0,0.02601185]
[1743183993524,0.39286099,83932.0,83931.0,0.02601185]
[1743183994511,0.39286099,83932.0,83931.0,0.00210568]
[1743183995476,0.46846099,83932.0,83931.0,0.00210568]
[1743183995818,0.39286099,83932.0,83931.0,0.00210568]
[1743183997042,0.25538099,83932.0,83931.0,0.00210568]
[1743183997256,0.39286099,83932.0,83931.0,0.00210568]
[1743183997656,0.00517899,83932.0,83931.0,0.00210568]
[1743183997880,0.14265899,83932.0,83931.0,0.01664653]
[1743183998283,0.14265899,83932.0,83931.0,0.26685053]
[1743183998485,0.14265899,83932.0,83931.0,0.25493653]
[1743183998876,0.14265899,83932.0,83931.0,0.01664653]
[1743183999081,0.39286099,83932.0,83931.0,0.01664653]
[1743183999905,0.39286099,83932.0,83931.0,0.00210568]
[1743184003304,0.24346699,83932.0,83931.0,0.00210568]
[1743184003441,0.14261899,83932.0,83931.0,0.00210568]
[1743184003810,0.39282099,83932.0,83931.0,0.00210568]
[1743184014420,0.14261899,83932.0,83931.0,0.01664653]
[1743184014963,0.14261899,83932.0,83931.0,0.36919417]
[1743184015164,0.14261899,83932.0,83931.0,0.68110817]
[1743184015365,0.14261899,83932.0,83931.0,0.67910817]
[1743184015571,0.137778,83932.0,83931.0,0.67910817]
[1743184015785,0.137778,83932.0,83931.0,0.68210817]
[1743184016166,0.000338,83932.0,83931.0,0.68110817]
[1743184016377,0.137778,83932.0,83931.0,0.67910817]
[1743184016739,0.137778,83932.0,83931.0,0.71831603]
[1743184016947,0.000338,83932.0,83931.0,0.71831603]
[1743184017149,0.137778,83932.0,83931.0,0.71831603]
[1743184017331,0.137778,83932.0,83931.0,0.70377518]
[1743184017544,0.137778,83932.0,83931.0,0.72031603]
[1743184017888,0.137778,83932.0,83931.0,0.71831603]
[1743184018091,0.137778,83932.0,83931.0,0.71931603]
[1743184018368,0.137778,83932.0,83931.0,0.72331603]
[1743184018581,0.137778,83932.0,83931.0,0.75912703]
[1743184019137,0.137778,83932.0,83931.0,0.72331603]
[1743184019339,0.14279897,83932.0,83931.0,0.72331603]
[1743184019543,0.137778,83932.0,83931.0,0.72331603]
[1743184021009,0.137738,83932.0,83931.0,0.70877518]
[1743184021190,0.137738,83932.0,83931.0,0.72331603]
[1743184022056,0.000338,83932.0,83931.0,0.72331603]
[1743184022262,0.137738,83932.0,83931.0,0.72331603]
[1743184022864,0.137738,83932.0,83931.0,0.71931603]
[1743184023070,0.137738,83932.0,83931.0,0.68210817]
[1743184023385,0.14279474,83932.0,83931.0,0.7193433]
[1743184023732,0.137738,83932.0,83931.0,0.7193433]
[1743184023905,0.137738,83932.0,83931.0,0.7163433]
[1743184024134,0.137738,83932.0,83931.0,0.7203433]
[1743184024266,0.137738,83932.0,83931.0,0.7253433]
[1743184025574,0.1427903,83932.0,83931.0,0.7253433]
[1743184025775,0.137738,83932.0,83931.0,0.7253433]
[1743184026402,0.14279111,83932.0,83931.0,0.7253433]
[1743184026602,0.137738,83932.0,83931.0,0.7253433]
[1743184027523,0.000338,83932.0,83931.0,0.8526433]
[1743184027732,0.137738,83932.0,83931.0,0.8526433]
[1743184028296,0.2385518,83958.0,83954.0,0.011911]
[1743184028498,0.14203436,83957.0,83956.0,0.01454085]
[1743184028697,0.00463436,83957.0,83956.0,0.37892949]
[1743184028897,0.1374,83957.0,83956.0,0.37892949]
[1743184029122,0.14203436,83957.0,83956.0,0.37892949]
[1743184029405,0.14203436,83957.0,83956.0,0.3790113]
[1743184029628,0.38025136,83957.0,83956.0,0.1407913]
[1743184030046,0.14203436,83957.0,83956.0,0.3790113]
[1743184030451,0.38025136,83957.0,83956.0,0.14783707]
[1743184030684,0.39216136,83957.0,83956.0,0.02158662]
[1743184031082,0.39216136,83957.0,83956.0,0.03526468]
[1743184031205,0.14203436,83957.0,83956.0,0.03726468]
[1743184031613,0.14203436,83957.0,83956.0,0.27548468]
[1743184032011,0.14203436,83957.0,83956.0,0.28739568]
[1743184032218,0.14203436,83957.0,83956.0,0.31095124]
[1743184033232,0.14203436,83957.0,83956.0,0.42520888]
[1743184033847,0.1375689,83957.0,83956.0,0.42520888]
[1743184034055,0.14224506,83957.0,83956.0,0.42520888]
[1743184034649,0.00484506,83957.0,83956.0,0.42520888]
[1743184034858,0.1375289,83957.0,83956.0,0.42520888]
[1743184036314,0.1375289,83957.0,83956.0,0.42320888]
[1743184036520,0.1375289,83957.0,83956.0,0.42720888]
[1743184037079,0.1375289,83957.0,83956.0,0.42520888]
[1743184037219,0.0001689,83957.0,83956.0,0.72820888]
[1743184037592,0.1375289,83957.0,83956.0,0.72820888]
[1743184038004,0.1375289,83957.0,83956.0,0.72520888]
[1743184038182,0.1375289,83957.0,83956.0,0.72120888]
[1743184038383,0.1375289,83957.0,83956.0,1.42120888]
[1743184038564,0.1375289,83957.0,83956.0,1.42520888]
[1743184038766,0.1375289,83957.0,83956.0,1.42120888]
[1743184038964,0.1375289,83957.0,83956.0,1.45700788]
[1743184039404,0.1375289,83957.0,83956.0,1.46100788]
[1743184040038,0.1375289,83957.0,83956.0,0.75700788]
[1743184040241,0.1375289,83957.0,83956.0,0.76800788]
[1743184040431,0.14467882,83957.0,83956.0,0.76800788]
[1743184040638,0.38289582,83957.0,83956.0,0.46753703]
[1743184040839,0.14467882,83957.0,83956.0,0.70575703]
[1743184041037,0.14467882,83957.0,83956.0,0.73220888]
[1743184041331,0.1375289,83957.0,83956.0,0.73220888]
[1743184044296,0.14467563,83957.0,83956.0,0.73220888]
[1743184045332,0.1375289,83957.0,83956.0,0.73220888]
[1743184045660,0.1494389,83957.0,83956.0,0.48207788]
[1743184045859,0.3757459,83957.0,83956.0,0.04160133]
[1743184046048,0.38289263,83957.0,83956.0,0.04160133]
[1743184046725,0.39480263,83957.0,83956.0,0.04160133]
[1743184046940,0.39480263,83957.0,83956.0,0.03560133]
[1743184047164,0.39480263,83957.0,83956.0,0.03360133]
[1743184047568,0.39480263,83957.0,83956.0,0.03660133]
[1743184049616,0.14467563,83957.0,83956.0,0.03660133]
[1743184049839,0.38289263,83957.0,83956.0,0.03660133]
[1743184050216,0.14467563,83957.0,83956.0,0.03660133]
[1743184050421,0.00731563,83957.0,83956.0,0.41553082]
[1743184050646,0.14463563,83957.0,83956.0,0.41553082]
[1743184050861,0.1374889,83957.0,83956.0,0.41553082]
[1743184052445,0.14458883,83957.0,83956.0,0.40953082]
[1743184052887,0.14458883,83957.0,83956.0,0.41453082]
[1743184053304,0.1374889,83957.0,83956.0,0.41453082]
[1743184053776,0.0001689,83957.0,83956.0,0.71453082]
[1743184054011,0.1374889,83957.0,83956.0,0.71853082]
[1743184054259,0.1374889,83957.0,83956.0,0.72745045]
[1743184054714,0.1374889,83957.0,83956.0,0.72345045]
[1743184055645,0.1374889,83957.0,83956.0,0.71845045]
[1743184055847,0.1374889,83957.0,83956.0,0.71553082]
[1743184056058,0.1374889,83957.0,83956.0,0.72153082]
[1743184056258,0.1374889,83957.0,83956.0,1.40698997]
[1743184056617,0.1374889,83957.0,83956.0,1.42153082]
[1743184056618,0.0001689,83957.0,83956.0,1.42153082]
[1743184056947,0.1374489,83957.0,83956.0,1.42153082]
[1743184057172,0.1374489,83957.0,83956.0,1.41448505]
[1743184057512,0.1374489,83957.0,83956.0,0.71448505]
[1743184057636,0.1374489,83957.0,83956.0,0.72153277]
[1743184058555,0.1374489,83957.0,83956.0,0.71448505]
[1743184060008,0.1374489,83957.0,83956.0,0.46435405]
[1743184060217,0.5120759,83957.0,83956.0,0.03555556]
[1743184060691,0.51831018,83957.0,83956.0,0.04260817]
[1743184061470,0.51831018,83957.0,83956.0,0.03660817]
[1743184061706,0.51831018,83957.0,83956.0,0.04060817]
[1743184062568,0.26818318,83957.0,83956.0,0.04060817]
[1743184062747,0.50640018,83957.0,83956.0,0.04060817]
[1743184062954,0.51831018,83957.0,83956.0,0.03460817]
[1743184063379,0.51831018,83957.0,83956.0,0.03960817]
[1743184065915,0.51831018,83957.0,83956.0,0.01605261]
[1743184066673,0.14368318,83957.0,83956.0,0.03059346]
[1743184066878,0.00640318,83957.0,83956.0,0.03059346]
[1743184067076,0.14368318,83957.0,83956.0,0.3899821]
[1743184067298,0.14368318,83957.0,83956.0,0.3859821]
[1743184067505,0.14368318,83957.0,83956.0,0.1378511]
[1743184067748,0.14367647,83957.0,83956.0,0.38600829]
[1743184067946,0.14367647,83957.0,83956.0,0.39791929]
[1743184068158,0.14367647,83957.0,83956.0,0.39691929]
[1743184068358,0.1374489,83957.0,83956.0,0.39891929]
[1743184068871,0.14367647,83957.0,83956.0,0.39691929]
[1743184069416,0.1374489,83957.0,83956.0,0.39691929]
[1743184069612,0.1374489,83957.0,83956.0,0.43216154]
[1743184069858,0.1374489,83957.0,83956.0,0.42322435]
[1743184070058,0.1374489,83957.0,83956.0,0.42822435]
[1743184070462,0.1374489,83957.0,83956.0,0.72822435]
[1743184070643,0.1374489,83957.0,83956.0,0.73222435]
[1743184072674,0.1374489,83957.0,83956.0,0.72722435]
[1743184072917,0.0001689,83957.0,83956.0,0.73322435]
[1743184073169,0.1374489,83957.0,83956.0,0.73322435]
[1743184073644,0.1374489,83957.0,83956.0,0.72322435]
[1743184073850,0.1374489,83957.0,83956.0,1.42822435]
[1743184074089,0.0001689,83957.0,83956.0,1.42822435]
[1743184074343,0.0001689,83957.0,83956.0,1.43322435]
[1743184074568,0.1374489,83957.0,83956.0,1.43922435]
[1743184075047,0.0001689,83957.0,83956.0,1.43922435]
[1743184075289,0.0001689,83957.0,83956.0,1.57132435]
[1743184075621,0.0001689,83957.0,83956.0,1.56532435]
[1743184076031,0.1374489,83957.0,83956.0,1.57132435]
[1743184076222,0.0001689,83957.0,83956.0,1.57132435]
[1743184076431,0.0001689,83957.0,83956.0,1.56532435]
[1743184076991,0.0001689,83957.0,83956.0,1.55432435]
[1743184077147,0.0001689,83957.0,83956.0,1.56032435]
[1743184077466,0.0001689,83957.0,83956.0,1.60211735]
[1743184077844,0.0001689,83957.0,83956.0,1.61104404]
[1743184080194,7e-07,83958.0,83957.0,0.56966785]
[1743184080355,7e-07,83958.0,83957.0,1.42116774]
[1743184080763,0.000338,83985.0,83984.0,0.550047]
[1743184080967,0.000338,83985.0,83984.0,1.28320774]
[1743184081213,0.0001688,83994.0,83993.0,0.55002]
[1743184081422,0.13785254,83994.0,83993.0,0.71606074]
[1743184081624,0.13785254,83994.0,83993.0,0.72498743]
[1743184081844,0.13785254,83994.0,83993.0,0.73696103]
[1743184082402,0.13785254,83994.0,83993.0,1.4241817]
[1743184082581,0.13785254,83994.0,83993.0,1.43123431]
[1743184082782,0.13785254,83994.0,83993.0,1.18121431]
[1743184083196,0.43656954,83994.0,83993.0,1.06695667]
[1743184083353,0.52284416,83994.0,83993.0,1.07295667]
[1743184083763,0.52284416,83994.0,83993.0,0.36098307]
[1743184084032,0.27282716,83994.0,83993.0,0.29909807]
[1743184084215,0.27282716,83994.0,83993.0,0.35205638]
[1743184084435,0.51093916,83994.0,83993.0,0.05805638]
[1743184084626,0.52284416,83994.0,83993.0,0.05805638]
[1743184084834,0.52284416,83994.0,83993.0,0.05100377]
[1743184085800,0.52284416,83994.0,83993.0,0.03646292]
[1743184085997,0.52284416,83994.0,83993.0,0.012]
[1743184086481,0.38560416,83994.0,83993.0,0.012]
[1743184086687,0.52280416,83994.0,83993.0,0.006]
[1743184086886,0.25002,83993.0,83992.0,0.03888711]
[1743184087287,0.25651924,83993.0,83992.0,0.03888711]
[1743184087512,0.00649924,83993.0,83992.0,0.03888711]
[1743184087869,0.24461424,83993.0,83992.0,0.03888711]
[1743184088211,0.00649924,83993.0,83992.0,0.27900411]
[1743184088411,0.00649924,83993.0,83992.0,0.04088711]
[1743184088622,0.24461424,83993.0,83992.0,0.04088711]
[1743184088916,0.25651924,83993.0,83992.0,0.04088711]
[1743184089388,0.25651924,83993.0,83992.0,0.04388711]
[1743184092034,0.33311924,83993.0,83992.0,0.02934626]
[1743184093270,0.22029924,83993.0,83992.0,0.28200411]
[1743184093638,0.22029924,83993.0,83992.0,0.04388711]
[1743184093838,0.47031924,83993.0,83992.0,0.04388711]
[1743184094245,0.47048804,83993.0,83992.0,0.04388711]
[1743184095829,0.47048804,83993.0,83992.0,0.02934626]
[1743184096094,0.47048804,83993.0,83992.0,0.005]
[1743184099954,0.51948804,83993.0,83992.0,0.005]
[1743184100975,0.51948804,83993.0,83992.0,0.003]
[1743184101602,0.51948804,83993.0,83979.0,0.00703008]
[1743184101603,0.26946804,83993.0,83987.0,0.011906]
[1743184101748,0.50758404,83993.0,83990.0,0.011906]
[1743184102147,0.238118,83992.0,83987.0,0.011906]
[1743184102348,0.00641439,83991.0,83989.0,0.238123]
[1743184102552,0.00641439,83991.0,83989.0,0.238126]
[1743184102758,0.00641439,83991.0,83989.0,0.02644685]
[1743184102962,0.1373688,83993.0,83991.0,0.02644685]
[1743184103323,0.250026,83991.0,83989.0,0.01454085]
[1743184103524,0.250026,83991.0,83990.0,0.001]
[1743184103725,0.250026,83991.0,83990.0,0.01554085]
[1743184103948,0.14361439,83991.0,83990.0,0.01554085]
[1743184104249,0.14361439,83991.0,83990.0,0.36792149]
[1743184104426,0.14361439,83991.0,83990.0,0.13582857]
[1743184104581,0.38173439,83991.0,83990.0,0.13582857]
[1743184104780,0.39364039,83991.0,83990.0,0.13882857]
[1743184106034,0.39364039,83991.0,83990.0,0.13682857]
[1743184106386,0.39364039,83991.0,83990.0,0.04887262]
[1743184106585,0.39364039,83991.0,83990.0,0.05187262]
[1743184106807,0.39364039,83991.0,83990.0,0.04887262]
[1743184107207,0.39364039,83991.0,83990.0,0.05187262]
[1743184107445,0.00641439,83991.0,83990.0,0.40425326]
[1743184107657,0.14357439,83991.0,83990.0,0.41615926]
[1743184107793,0.0001688,83993.0,83992.0,0.250022]
[1743184108151,0.0001688,83993.0,83992.0,0.37882049]
[1743184108152,0.1373288,83993.0,83992.0,0.37882049]
[1743184109111,0.1373288,83993.0,83992.0,0.38774211]
[1743184109714,0.1373288,83993.0,83992.0,0.39877219]
[1743184109926,0.1373288,83993.0,83992.0,0.14875019]
[1743184110169,0.14380503,83993.0,83992.0,0.16565519]
[1743184110395,0.14380503,83993.0,83992.0,0.40377219]
[1743184111500,0.14380503,83993.0,83992.0,0.39186719]
[1743184111917,0.38192003,83993.0,83992.0,0.15375019]
[1743184112112,0.39382503,83993.0,83992.0,0.15375019]
[1743184112236,0.39382503,83993.0,83992.0,0.18947272]
[1743184112485,0.39382503,83993.0,83992.0,0.06067423]
[1743184112824,0.39382503,83993.0,83992.0,0.07521508]
[1743184113064,0.14380503,83993.0,83992.0,0.07521508]
[1743184113303,0.14380503,83993.0,83992.0,0.32523708]
[1743184113863,0.14380503,83993.0,83992.0,0.31333208]
[1743184114061,0.14380503,83993.0,83992.0,0.42758972]
[1743184114267,0.1373288,83993.0,83992.0,0.43949472]
[1743184114502,0.14380503,83993.0,83992.0,0.40377219]
[1743184115620,0.14380503,83993.0,83992.0,0.18953919]
[1743184115621,0.3754438,83993.0,83992.0,0.18953919]
[1743184115954,0.38192003,83993.0,83992.0,0.18953919]
[1743184116318,0.14380503,83993.0,83992.0,0.18953919]
[1743184116497,0.39382503,83993.0,83992.0,0.20081471]
[1743184116861,0.39382503,83993.0,83992.0,0.05076807]
[1743184117100,0.14380503,83993.0,83992.0,0.28888507]
[1743184117260,0.14380503,83993.0,83992.0,0.05076807]
[1743184117874,0.14380503,83993.0,83992.0,0.28888507]
[1743184119106,0.38192003,83993.0,83992.0,0.05076807]
[1743184119314,0.14380503,83993.0,83992.0,0.05076807]
[1743184119519,0.14380503,83993.0,83992.0,0.28888507]
[1743184119702,0.14380503,83993.0,83992.0,0.05076807]
[1743184119898,0.38192003,83993.0,83992.0,0.05076807]
[1743184121066,0.39382503,83993.0,83992.0,0.09544469]
[1743184122496,0.47392503,83993.0,83992.0,0.08090384]
[1743184122942,0.52182503,83993.0,83992.0,0.08090384]
[1743184123591,0.52182503,83993.0,83992.0,0.07198222]
[1743184124601,0.52182503,83993.0,83992.0,0.06798222]
[1743184124846,0.63608267,83993.0,83992.0,0.05595214]
[1743184125083,0.63608267,83993.0,83990.0,0.0003376]
[1743184125084,0.378826,83991.0,83990.0,8.2e-07]
[1743184125337,0.49308364,83991.0,83990.0,8.2e-07]
[1743184125579,0.49952308,83991.0,83990.0,8.2e-07]
[1743184125827,0.51820012,83991.0,83990.0,8.2e-07]
[1743184126948,0.250029,83990.0,83989.0,4.2e-07]
[1743184127078,1.02804428,83990.0,83989.0,4.2e-07]
[1743184127288,1.0344541,83990.0,83989.0,4.2e-07]
[1743184128320,0.250127,83957.0,83956.0,0.5673376]
[1743184128628,0.39365301,83957.0,83956.0,0.0003376]
[1743184128831,0.49659287,83957.0,83956.0,0.0003376]
[1743184129246,0.25649301,83957.0,83956.0,0.0003376]
[1743184129449,0.00636601,83957.0,83956.0,0.37926709]
[1743184129714,0.14352601,83957.0,83956.0,0.13313609]
[1743184129853,0.387287,83957.0,83956.0,0.01887845]
[1743184130054,0.39365301,83957.0,83956.0,0.01887845]
[1743184130255,0.14352601,83957.0,83956.0,0.02387845]
[1743184130713,0.14352601,83957.0,83956.0,0.27400945]
[1743184130921,0.14352601,83957.0,83956.0,0.26209845]
[1743184131133,0.14352601,83957.0,83956.0,0.02387845]
[1743184131343,0.38174301,83957.0,83956.0,0.02387845]
[1743184131563,0.39365301,83957.0,83956.0,0.0093376]
[1743184132624,0.38174301,83957.0,83956.0,0.0093376]
[1743184134218,0.14352601,83957.0,83956.0,0.0093376]
[1743184135133,0.14352601,83957.0,83956.0,0.2475576]
[1743184135336,0.14356601,83957.0,83956.0,0.38826709]
[1743184135774,0.1372,83957.0,83956.0,0.38826709]
[1743184135958,0.1372,83957.0,83956.0,0.37635609]
[1743184136161,0.1372,83957.0,83956.0,0.13813609]
[1743184136360,0.45970623,83957.0,83956.0,0.13813609]
[1743184136914,0.44775623,83957.0,83956.0,0.13813609]
[1743184137059,0.38163053,83957.0,83956.0,0.13813609]
[1743184138115,0.38163053,83957.0,83956.0,0.02387845]
[1743184138116,0.39354053,83957.0,83956.0,0.02387845]
[1743184140744,0.14341353,83957.0,83956.0,0.02387845]
[1743184140952,0.14341353,83957.0,83956.0,0.27400945]
[1743184141372,0.00625353,83957.0,83956.0,0.38826709]
[1743184141548,0.14345353,83957.0,83956.0,0.13813609]
[1743184141751,0.1372,83957.0,83956.0,0.13813609]
[1743184141964,0.14341596,83957.0,83956.0,0.37635609]
[1743184143489,0.14341596,83957.0,83956.0,0.38826709]
[1743184143707,0.00621596,83957.0,83956.0,0.68826709]
[1743184143905,0.1372,83957.0,83956.0,0.68826709]
[1743184144321,0.011908,83971.0,83966.0,0.238191]
[1743184144521,0.238188,83967.0,83966.0,0.11425764]
[1743184144693,0.238188,83967.0,83966.0,0.12879849]
[1743184144911,0.238188,83967.0,83958.0,0.01191]
[1743184144912,0.238209,83960.0,83958.0,0.01454085]
[1743184145117,0.238209,83960.0,83957.0,0.3]
[1743184145118,0.238211,83959.0,83957.0,0.3]
[1743184145351,0.24444126,83959.0,83957.0,0.3]
[1743184145524,0.00623026,83959.0,83957.0,0.3]
[1743184145726,0.24444126,83959.0,83957.0,0.3]
[1743184145927,0.00623026,83959.0,83958.0,0.3]
[1743184146322,0.238211,83959.0,83958.0,0.30700361]
[1743184146628,0.24444126,83959.0,83958.0,0.30700361]
[1743184146833,0.25635126,83959.0,83958.0,0.30700361]
[1743184147274,0.00623026,83959.0,83958.0,0.55975846]
[1743184147474,0.14343026,83959.0,83958.0,0.6859261]
[1743184147673,0.1372,83959.0,83958.0,0.67892249]
[1743184147849,0.14343026,83959.0,83958.0,0.68292249]
[1743184148522,0.14343026,83959.0,83958.0,0.67101249]
[1743184148865,0.1372,83959.0,83958.0,0.67101249]
[1743184149071,0.14343026,83959.0,83958.0,0.70681449]
[1743184149370,0.14343026,83959.0,83958.0,0.7178181]
[1743184149569,0.48173759,83959.0,83958.0,0.36534646]
[1743184149793,0.39355126,83959.0,83958.0,0.36534646]
[1743184149951,0.39351126,83959.0,83958.0,0.32954446]
[1743184150156,0.39351126,83959.0,83958.0,0.01500361]
[1743184153046,0.39351126,83959.0,83958.0,0.01100361]
[1743184153265,0.49709989,83959.0,83958.0,0.01300361]
[1743184153625,0.49709989,83959.0,83958.0,0.002]
[1743184153804,0.57979989,83959.0,83958.0,0.002]
[1743184154007,0.62779989,83959.0,83958.0,0.004]
[1743184155051,0.74205753,83959.0,83958.0,0.004]
[1743184155381,0.74205753,83959.0,83958.0,0.002]
[1743184155949,0.250127,83957.0,83956.0,0.0003376]
[1743184156176,0.44768464,83957.0,83956.0,0.0003376]
[1743184156360,0.45385743,83957.0,83956.0,0.0003376]
[1743184157926,0.33959979,83957.0,83956.0,0.0003376]
[1743184158558,0.45385743,83957.0,83956.0,0.0003376]
[1743184160054,0.45485743,83957.0,83956.0,0.0003376]
[1743184160814,0.45585743,83957.0,83956.0,0.0003376]
[1743184161467,0.45585743,83957.0,83956.0,6e-07]
[1743184161602,0.62001507,83957.0,83956.0,6e-07]
[1743184162216,0.39149979,83957.0,83956.0,6e-07]
[1743184162444,0.52869979,83957.0,83956.0,6e-07]
[1743184169614,0.54738443,83957.0,83956.0,6e-07]
[1743184169978,0.39149979,83957.0,83956.0,6e-07]
[1743184170178,0.39549979,83957.0,83956.0,6e-07]
[1743184171712,0.39449979,83957.0,83956.0,6e-07]
[1743184172114,0.39449979,83957.0,83956.0,0.0020006]
[1743184172480,0.39349979,83957.0,83956.0,0.0020006]
[1743184172816,0.43429196,83957.0,83956.0,0.0040006]
[1743184173481,0.39349979,83957.0,83956.0,0.0040006]
[1743184177118,0.39366869,83957.0,83956.0,0.0040006]
[1743184181746,0.47566869,83957.0,83956.0,0.0040006]
[1743184182184,0.63862633,83957.0,83956.0,6e-07]
[1743184182387,0.93862633,83957.0,83956.0,6e-07]
[1743184182607,1.05288397,83957.0,83956.0,6e-07]
[1743184182794,1.05288397,83957.0,83943.0,3.2e-07]
[1743184182795,0.25016,83946.0,83943.0,3.2e-07]
[1743184182998,0.250166,83944.0,83943.0,0.00010568]
[1743184183196,0.36442364,83944.0,83943.0,6.8e-07]
[1743184183398,0.44724156,83944.0,83943.0,6.8e-07]
[1743184183598,0.580188,83944.0,83943.0,6.8e-07]
[1743184184439,0.581188,83944.0,83943.0,6.8e-07]
[1743184185339,0.46693036,83944.0,83943.0,6.8e-07]
[1743184185496,0.35367272,83944.0,83943.0,6.8e-07]
[1743184185701,0.41417272,83944.0,83943.0,6.8e-07]
[1743184186704,0.39548392,83944.0,83943.0,6.8e-07]
[1743184189486,0.39548392,83944.0,83943.0,0.00033848]
[1743184190223,0.45064461,83944.0,83943.0,0.00033848]
[1743184193812,0.46933287,83944.0,83943.0,0.00033848]
[1743184193961,0.33213287,83944.0,83943.0,0.00033848]
[1743184194164,0.46933287,83944.0,83943.0,0.00033848]
[1743184194361,0.41417218,83944.0,83943.0,0.00033848]
[1743184195320,0.39548392,83944.0,83943.0,0.00033848]
[1743184196781,0.25828392,83944.0,83943.0,0.00033848]
[1743184196980,0.39548392,83944.0,83943.0,0.00033848]
[1743184197942,0.39448392,83944.0,83943.0,0.00033848]
[1743184198140,0.39348392,83944.0,83943.0,0.00133848]
[1743184198344,0.50668871,83944.0,83943.0,0.00133848]
[1743184198556,0.50668871,83944.0,83943.0,0.00233848]
[1743184200492,0.58808871,83944.0,83943.0,0.00233848]
[1743184201293,0.47488392,83944.0,83943.0,0.00233848]
[1743184201757,0.39348392,83944.0,83943.0,0.00233848]
[1743184202708,0.39365272,83944.0,83943.0,0.00233848]
[1743184204979,0.47285272,83944.0,83943.0,0.00233848]
[1743184205587,0.63651036,83944.0,83943.0,0.00233848]
[1743184205728,0.750768,83944.0,83943.0,0.00233848]
[1743184206624,0.750768,83944.0,83943.0,4.8e-07]
[1743184206835,0.250199,83933.0,83932.0,0.0003378]
[1743184207034,0.250199,83933.0,83932.0,0.00047075]
[1743184207252,0.38318621,83933.0,83932.0,0.00047075]
[1743184208685,0.38318621,83933.0,83932.0,7.5e-07]
[1743184208686,0.49744385,83933.0,83932.0,7.5e-07]
[1743184208857,0.54494385,83933.0,83932.0,7.5e-07]
[1743184209610,0.55681207,83933.0,83932.0,7.5e-07]
[1743184210368,0.55981207,83933.0,83932.0,7.5e-07]
[1743184210608,0.56381207,83933.0,83932.0,7.5e-07]
[1743184211257,0.50778227,83933.0,83932.0,7.5e-07]
[1743184213216,0.52647455,83933.0,83932.0,7.5e-07]